[Event "44th Chess Olympiad Women 2022"]
[Site "Chennai"]
[Date "2022.08.02"]
[Round "5.8"]
[White "Sukandar, Irine Kharisma"]
[Black "Danielian, Elina"]
[Result "1/2-1/2"]
[ECO "B45"]
[WhiteElo "2373"]
[BlackElo "2441"]
[Annotator "RC"]
[PlyCount "114"]
[EventDate "2022.07.29"]
[EventType "team-tourn"]
[EventCountry "IND"]
[SourceTitle "playchess.com"]
[Source "ChessBase"]
[SourceQuality "1"]
[WhiteTeam "Indonesia"]
[BlackTeam "Armenia"]
[WhiteTeamCountry "INA"]
[BlackTeamCountry "ARM"]
[TimeControl "40/5400+30:1800+30"]

1. e4 {[%emt 0:00:04]} c5 {[%emt 0:00:08]} 2. Nf3 {[%emt 0:00:18]} e6 {[%emt 0:00:19]} 3. d4 {[%emt 0:00:40]} cxd4 {[%emt 0:00:05]} 4. Nxd4 {[%emt 0:00:05]} Nc6 {[%emt 0:00:06]} 5. Nc3 {[%emt 0:01:09]} Nf6 {[%emt 0:00:20]} 6. Ndb5 {[%emt 0:12:36]} Bb4 {[%emt 0:00:27]} 7. a3 {[%emt 0:00:13]} Bxc3+ {[%emt 0:00:08]} 8. Nxc3 {[%emt 0:00:05]} d5 {[%emt 0:00:40]} 9. exd5 {[%emt 0:00:04]} exd5 {[%emt 0:00:05]} 10. Be2 {[%emt 0:00:50]} d4 {[%emt 0:10:23]} 11. Nb1 {[%emt 0:02:39]} O-O {[%emt 0:00:33]} 12. O-O {[%emt 0:00:19]} Bf5 {[%emt 0:00:34]} 13. b4 {[%emt 0:03:10]} Re8 {[%emt 0:11:47]} 14. Bb2 {[%emt 0:02:46]} Qb6 {[%emt 0:16:05]} 15. Bd3 {[%emt 0:05:15]} Bg4 {[%emt 0:05:39]} 16. f3 {[%emt 0:06:20]} Bh5 {[%emt 0:03:17]} 17. Nd2 {[%emt 0:00:24]} Rad8 {[%emt 0:01:08]} 18. Re1 {[%emt 0:01:21]} Ne5 {[%emt 0:06:37]} 19. Rxe5 {[%emt 0:03:14]} Rxe5 {[%emt 0:00:04]} 20. Nc4 {[%emt 0:00:05]} Qc7 {[%emt 0:00:08]} 21. Nxe5 {[%emt 0:00:06]} Qxe5 {[%emt 0:00:04]} 22. Qe1 {[%emt 0:00:50]} Qf4 {[%emt 0:09:32]} 23. Qg3 {[%emt 0:06:16]} Nd5 {[%emt 0:04:20]} 24. Re1 {[%emt 0:10:02]} Bg6 {[%emt 0:03:00]} 25. Qxf4 {[%emt 0:11:13]} Nxf4 {[%emt 0:00:04]} 26. Bxd4 {[%emt 0:01:15]} Nxd3 {[%emt 0:15:54]} 27. cxd3 {[%emt 0:00:12]} h5 {[%emt 0:01:12]} 28. Bxa7 {[%emt 0:00:46]} Ra8 {[%emt 0:02:15]} 29. Bc5 {[%emt 0:05:06]} Bxd3 {[%emt 0:00:48]} 30. h4 {[%emt 0:01:40]} b5 {[%emt 0:03:28]} 31. Ra1 {[%emt 0:02:19]} f6 {[%emt 0:01:04]} 32. Kf2 {[%emt 0:00:12]} Kf7 {[%emt 0:00:19]} 33. Ke3 {[%emt 0:00:25]} Bc2 {[%emt 0:01:41]} 34. Kf4 {[%emt 0:06:41]} Re8 {[%emt 0:02:33]} 35. g4 {[%emt 0:01:06]} g6 {[%emt 0:01:55]} 36. gxh5 {[%emt 0:06:03]} gxh5 {[%emt 0:00:02]} 37. Be3 {[%emt 0:00:49]} Rc8 {[%emt 0:00:52]} 38. Bd4 {[%emt 0:01:25]} Rd8 {[%emt 0:00:56]} 39. Ke3 {[%emt 0:00:38]} Re8+ {[%emt 0:00:34]} 40. Kd2 {[%emt 0:00:29]} Bb3 {[%emt 0:00:41]} 41. Rc1 {[%emt 0:32:42]} Rd8 {[%emt 0:05:54]} 42. Rc7+ {[%emt 0:00:00]} Ke6 {[%emt 0:03:43]} 43. Ke3 {[%emt 0:00:00]} Bd1 {[%emt 0:08:56]} 44. Rb7 {[%emt 0:00:00]} Ba4 {[%emt 0:02:52]} 45. Rh7 {[%emt 0:00:00]} Rd5 {[%emt 0:00:27]} 46. Rh6 {[%emt 0:00:00]} Rf5 {[%emt 0:00:17]} 47. f4 {[%emt 0:00:00]} Bb3 {[%emt 0:08:04]} 48. Bc5 {[%emt 0:00:00]} Bc2 {[%emt 0:03:03]} 49. Rh8 {[%emt 0:00:00]} Rd5 {[%emt 0:00:27]} 50. Re8+ {[%emt 0:00:00]} Kf5 {[%emt 0:00:45]} 51. Bd4 {[%emt 0:00:00]} Rd6 {[%emt 0:00:18]} 52. Rf8 {[%emt 0:02:34]} Re6+ {[%emt 0:00:50]} 53. Kd2 {[%emt 0:02:34]} Ba4 {[%emt 0:00:10]} 54. Kd3 {[%emt 0:01:54]} Rd6 {[%emt 0:00:06]} 55. Ke3 {[%emt 0:01:20]} Re6+ {[%emt 0:00:04]} 56. Kd3 {[%emt 0:00:44]} Rd6 {[%emt 0:00:04]} 57. Ke3 {[%emt 0:00:04]} Re6+ {[%emt 0:00:03]} 1/2-1/2

[Event "44th Chess Olympiad Women 2022"]
[Site "Chennai"]
[Date "2022.08.02"]
[Round "5.8"]
[White "Mkrtchian, Lilit"]
[Black "Aulia, Medina Warda"]
[Result "1/2-1/2"]
[ECO "A07"]
[WhiteElo "2362"]
[BlackElo "2374"]
[Annotator "RC"]
[PlyCount "128"]
[EventDate "2022.07.29"]
[EventType "team-tourn"]
[EventCountry "IND"]
[SourceTitle "playchess.com"]
[Source "ChessBase"]
[SourceQuality "1"]
[WhiteTeam "Armenia"]
[BlackTeam "Indonesia"]
[WhiteTeamCountry "ARM"]
[BlackTeamCountry "INA"]
[TimeControl "40/5400+30:1800+30"]

1. Nf3 {[%emt 0:00:25]} Nf6 {[%emt 0:00:37]} 2. g3 {[%emt 0:00:29]} e6 {[%emt 0:00:21]} 3. Bg2 {[%emt 0:00:28]} d5 {[%emt 0:00:26]} 4. O-O {[%emt 0:00:31]} Nbd7 {[%emt 0:02:17]} 5. d3 {[%emt 0:13:15]} Be7 {[%emt 0:03:46]} 6. Nbd2 {[%emt 0:01:03]} b6 {[%emt 0:03:34]} 7. e4 {[%emt 0:04:41]} Bb7 {[%emt 0:02:39]} 8. Qe2 {[%emt 0:11:41]} h5 {[%emt 0:11:39]} 9. h3 {[%emt 0:07:34]} c5 {[%emt 0:12:05]} 10. e5 {[%emt 0:05:53]} Ng8 {[%emt 0:00:14]} 11. c4 {[%emt 0:00:15]} Nf8 {[%emt 0:00:25]} 12. d4 {[%emt 0:05:02]} Qd7 {[%emt 0:00:17]} 13. Rd1 {[%emt 0:05:43]} h4 {[%emt 0:04:53]} 14. g4 {[%emt 0:02:11]} Ng6 {[%emt 0:00:06]} 15. Nb1 {[%emt 0:16:30]} Ba6 {[%emt 0:15:59]} 16. b3 {[%emt 0:01:06]} cxd4 {[%emt 0:00:40]} 17. Nxd4 {[%emt 0:01:15]} Bc5 {[%emt 0:02:47]} 18. Nc3 {[%emt 0:01:04]} N8e7 {[%emt 0:03:50]} 19. Qe1 {[%emt 0:07:56]} O-O {[%emt 0:02:00]} 20. cxd5 {[%emt 0:00:11]} exd5 {[%emt 0:00:04]} 21. a3 {[%emt 0:01:08]} Rac8 {[%emt 0:01:12]} 22. b4 {[%emt 0:07:03]} Bxd4 {[%emt 0:00:09]} 23. Rxd4 {[%emt 0:00:04]} Qc7 {[%emt 0:00:03]} 24. Nxd5 {[%emt 0:05:26]} Nxd5 {[%emt 0:00:06]} 25. Bxd5 {[%emt 0:00:29]} Nxe5 {[%emt 0:00:29]} 26. Bf4 {[%emt 0:00:23]} Rfe8 {[%emt 0:00:06]} 27. Qd1 {[%emt 0:01:39]} Qc3 {[%emt 0:03:11]} 28. Bxe5 {[%emt 0:00:27]} Rxe5 {[%emt 0:00:18]} 29. Bg2 {[%emt 0:00:29]} g6 {[%emt 0:01:26]} 30. Rd8+ {[%emt 0:00:17]} Rxd8 {[%emt 0:00:05]} 31. Qxd8+ {[%emt 0:00:02]} Kg7 {[%emt 0:00:04]} 32. Qd1 {[%emt 0:01:01]} Re2 {[%emt 0:02:01]} 33. Bf1 {[%emt 0:00:37]} Rd2 {[%emt 0:00:05]} 34. Qc1 {[%emt 0:00:29]} Qxc1 {[%emt 0:00:05]} 35. Rxc1 {[%emt 0:00:02]} Bxf1 {[%emt 0:00:04]} 36. Kxf1 {[%emt 0:00:21]} Rd3 {[%emt 0:00:32]} 37. a4 {[%emt 0:00:55]} Ra3 {[%emt 0:01:48]} 38. a5 {[%emt 0:00:37]} bxa5 {[%emt 0:00:04]} 39. b5 {[%emt 0:00:46]} Rb3 {[%emt 0:00:04]} 40. Rc7 {[%emt 0:00:04]} Rxb5 {[%emt 0:00:04]} 41. Rxa7 {[%emt 0:30:03]} Kf6 {[%emt 0:36:31]} 42. f4 {[%emt 0:00:00]} Rb1+ {[%emt 0:00:00]} 43. Kf2 {[%emt 0:00:00]} Ra1 {[%emt 0:00:00]} 44. Kf3 {[%emt 0:00:00]} a4 {[%emt 0:00:00]} 45. g5+ {[%emt 0:00:00]} Kg7 {[%emt 0:00:00]} 46. Kg4 {[%emt 0:00:00]} a3 {[%emt 0:00:00]} 47. Kxh4 {[%emt 0:00:00]} a2 {[%emt 0:00:00]} 48. Ra8 {[%emt 0:00:00]} Kh7 {[%emt 0:00:00]} 49. Ra7 {[%emt 0:00:00]} Kg8 {[%emt 0:00:00]} 50. Ra8+ {[%emt 0:00:00]} Kg7 {[%emt 0:00:00]} 51. Ra7 {[%emt 0:00:00]} Kf8 {[%emt 0:00:00]} 52. Ra8+ {[%emt 0:00:00]} Kg7 {[%emt 0:00:00]} 53. Ra7 {[%emt 0:00:00]} Kg8 {[%emt 0:00:00]} 54. Ra8+ {[%emt 0:00:00]} Kh7 {[%emt 0:00:00]} 55. Ra6 {[%emt 0:00:00]} Kg7 {[%emt 0:04:09]} 56. Ra7 {[%emt 0:00:00]} Kf8 {[%emt 0:03:04]} 57. Ra8+ {[%emt 0:00:00]} Ke7 {[%emt 0:00:02]} 58. Ra7+ {[%emt 0:00:00]} Ke6 {[%emt 0:00:08]} 59. Ra6+ {[%emt 0:00:00]} Kd5 {[%emt 0:00:05]} 60. Ra5+ {[%emt 0:00:00]} Kc4 {[%emt 0:00:06]} 61. Ra7 {[%emt 0:01:00]} Kd5 {[%emt 0:04:36]} 62. Ra5+ {[%emt 0:00:29]} Ke4 {[%emt 0:00:04]} 63. Ra4+ {[%emt 0:00:20]} Ke3 {[%emt 0:00:41]} 64. Ra3+ {[%emt 0:00:14]} Ke4 {[%emt 0:01:08]} 1/2-1/2

[Event "44th Chess Olympiad Women 2022"]
[Site "Chennai"]
[Date "2022.08.02"]
[Round "5.8"]
[White "Mkrtchyan, Mariam"]
[Black "Citra, Dewi Ardhiani Anasta"]
[Result "1-0"]
[ECO "D07"]
[WhiteElo "2285"]
[BlackElo "2257"]
[Annotator "NA RC"]
[PlyCount "116"]
[EventDate "2022.07.29"]
[EventType "team-tourn"]
[EventCountry "IND"]
[SourceTitle "playchess.com"]
[Source "ChessBase"]
[SourceQuality "1"]
[WhiteTeam "Armenia"]
[BlackTeam "Indonesia"]
[WhiteTeamCountry "ARM"]
[BlackTeamCountry "INA"]
[TimeControl "40/5400+30:1800+30"]

1. d4 {[%emt 0:00:03]} d5 {[%emt 0:00:05]} 2. c4 {[%emt 0:00:05]} Nc6 {[%emt 0:00:05]} 3. Nc3 {[%emt 0:00:24]} Nf6 {[%emt 0:00:19]} 4. Nf3 {[%emt 0:00:24]} Bf5 {[%emt 0:00:44]} 5. cxd5 {[%emt 0:01:03]} Nxd5 {[%emt 0:00:25]} 6. Qb3 {[%emt 0:00:21]} e6 {[%emt 0:07:03]} 7. e4 {[%emt 0:01:15]} Nxc3 {[%emt 0:00:24]} 8. exf5 {[%emt 0:00:04]} Nd5 {[%emt 0:01:10]} 9. Bd2 {[%emt 0:00:19]} Bd6 {[%emt 0:14:34]} 10. fxe6 {[%emt 0:06:53]} fxe6 {[%emt 0:00:54]} 11. Qxb7 {[%emt 0:06:00]} Ndb4 {[%emt 0:01:08]} 12. Qb5 {[%emt 0:01:06]} O-O {[%emt 0:01:57]} 13. Qc4 {[%emt 0:13:24]} Qe8 {[%emt 0:27:38]} 14. Rc1 {[%emt 0:06:55]} Rb8 {[%emt 0:06:58]} 15. a3 {[%emt 0:06:11]} Na5 {[%emt 0:00:41]} 16. Qc3 {[%emt 0:09:20]} Na2 {[%emt 0:00:12]} 17. Qxa5 {[%emt 0:00:06]} Nxc1 {[%emt 0:00:04]} 18. Bxc1 {[%emt 0:00:07]} Qc6 {[%emt 0:00:21]} 19. Bd2 {[%emt 0:14:55]} Qe4+ {[%emt 0:02:33]} 20. Be2 {[%emt 0:01:50]} Rxb2 {[%emt 0:00:31]} 21. Kf1 {[%emt 0:02:00]} Bf4 {[%emt 0:06:10]} 22. Qc3 {[%emt 0:05:54]} Qb1+ {[%emt 0:17:16]} 23. Be1 {[%emt 0:00:14]} Rb3 {[%emt 0:07:44]} 24. Qc4 {[%emt 0:03:08]} Rxa3 {[%emt 0:01:50]} 25. Qxe6+ {[%emt 0:01:19]} Kh8 {[%emt 0:00:08]} 26. g3 {[%emt 0:00:11]} Bd6 {[%emt 0:00:58]} 27. Kg2 {[%emt 0:03:52]} Qf5 {[%emt 0:01:17]} 28. Qxf5 {[%emt 0:01:11]} Rxf5 {[%emt 0:00:01]} 29. Bd2 {[%emt 0:00:21]} Rf8 {[%emt 0:00:42]} 30. Be3 {[%emt 0:02:36]} Ra2 {[%emt 0:00:36]} 31. Bc4 {[%emt 0:00:39]} Ra4 {[%emt 0:00:29]} 32. Rc1 {[%emt 0:01:19]} h6 {[%emt 0:00:57]} 33. Ne5 {[%emt 0:00:19]} Kh7 {[%emt 0:00:14]} 34. h4 {[%emt 0:01:28]} Rb4 {[%emt 0:00:41]} 35. g4 {[%emt 0:01:34]} Re8 {[%emt 0:00:31]} 36. Bf7 {[%emt 0:01:25]} Re7 {[%emt 0:00:21]} 37. Bg6+ {[%emt 0:00:11]} Kg8 {[%emt 0:00:12]} 38. Nc6 {[%emt 0:00:08]} Re6 {[%emt 0:00:27]} 39. Bf5 {[%emt 0:00:07]} Rxe3 {[%emt 0:00:59]} 40. fxe3 {[%emt 0:00:17]} Rb2+ {[%emt 0:00:09]} 41. Kf3 {[%emt 0:30:03]} Kf7 {[%emt 0:30:31]} 42. Nxa7 {[%emt 0:00:18]} g6 {[%emt 0:00:00]} 43. Bc2 {[%emt 0:00:00]} Ba3 {[%emt 0:00:00]} 44. Be4 {[%emt 0:00:00]} Bd6 {[%emt 0:00:00]} 45. Nc8 {[%emt 0:00:00]} Bh2 {[%emt 0:00:00]} 46. Rc2 {[%emt 0:00:00]} Rxc2 {[%emt 0:00:00]} 47. Bxc2 {[%emt 0:00:00]} Bg1 {[%emt 0:00:45]} 48. Na7 {[%emt 0:00:00]} g5 {[%emt 0:00:00]} 49. h5 {[%emt 0:00:00]} Ke6 {[%emt 0:00:22]} 50. Nb5 {[%emt 0:00:00]} Kd7 {[%emt 0:00:00]} 51. Nc3 {[%emt 0:00:00]} Ke6 {[%emt 0:00:00]} 52. Bb3+ {[%emt 0:00:00]} Kd7 {[%emt 0:00:00]} 53. Ke4 {[%emt 0:00:00]} c6 {[%emt 0:00:00]} 54. Ba4 {[%emt 0:00:00]} Kd6 {[%emt 0:00:00]} 55. Kd3 {[%emt 0:00:00]} Bh2 {[%emt 0:00:00]} 56. e4 {[%emt 0:00:00]} c5 {[%emt 0:00:00]} 57. e5+ {[%emt 0:00:00]} Bxe5 {[%emt 0:00:00]} 58. Ne4+ {[%emt 0:00:00]} Kd5 {[%emt 0:04:19]} 1-0

[Event "44th Chess Olympiad Women 2022"]
[Site "Chennai"]
[Date "2022.08.02"]
[Round "5.8"]
[White "Mariroh, Fariha"]
[Black "Sargsyan, Anna M."]
[Result "0-1"]
[ECO "C54"]
[WhiteElo "1839"]
[BlackElo "2378"]
[Annotator "RC"]
[PlyCount "82"]
[EventDate "2022.07.29"]
[EventType "team-tourn"]
[EventCountry "IND"]
[SourceTitle "playchess.com"]
[Source "ChessBase"]
[SourceQuality "1"]
[WhiteTeam "Indonesia"]
[BlackTeam "Armenia"]
[WhiteTeamCountry "INA"]
[BlackTeamCountry "ARM"]
[TimeControl "40/5400+30:1800+30"]

1. e4 {[%emt 0:00:02]} e5 {[%emt 0:00:08]} 2. Nf3 {[%emt 0:00:05]} Nc6 {[%emt 0:00:07]} 3. Bc4 {[%emt 0:00:10]} Bc5 {[%emt 0:00:23]} 4. c3 {[%emt 0:00:15]} Nf6 {[%emt 0:01:46]} 5. d3 {[%emt 0:00:14]} d6 {[%emt 0:01:09]} 6. O-O {[%emt 0:00:35]} h6 {[%emt 0:04:04]} 7. Be3 {[%emt 0:07:51]} Bb6 {[%emt 0:00:29]} 8. Nbd2 {[%emt 0:04:58]} g5 {[%emt 0:02:15]} 9. Bb3 {[%emt 0:07:35]} g4 {[%emt 0:00:57]} 10. Ne1 {[%emt 0:00:45]} Ne7 {[%emt 0:13:45]} 11. d4 {[%emt 0:03:33]} Ng6 {[%emt 0:03:38]} 12. Nd3 {[%emt 0:03:03]} Qe7 {[%emt 0:00:45]} 13. Re1 {[%emt 0:12:09]} Bd7 {[%emt 0:13:37]} 14. a4 {[%emt 0:05:25]} a6 {[%emt 0:09:49]} 15. a5 {[%emt 0:11:27]} Ba7 {[%emt 0:00:08]} 16. Ba4 {[%emt 0:00:49]} c6 {[%emt 0:04:43]} 17. dxe5 {[%emt 0:11:13]} dxe5 {[%emt 0:00:22]} 18. Bxa7 {[%emt 0:00:43]} Rxa7 {[%emt 0:00:05]} 19. Qe2 {[%emt 0:03:26]} Ra8 {[%emt 0:01:58]} 20. Qe3 {[%emt 0:02:58]} Rd8 {[%emt 0:00:33]} 21. Rad1 {[%emt 0:00:54]} h5 {[%emt 0:01:35]} 22. Nc5 {[%emt 0:03:51]} g3 {[%emt 0:03:46]} 23. f3 {[%emt 0:14:26]} gxh2+ {[%emt 0:00:19]} 24. Kh1 {[%emt 0:01:06]} Bc8 {[%emt 0:09:45]} 25. Nc4 {[%emt 0:00:42]} Kf8 {[%emt 0:07:10]} 26. Rxd8+ {[%emt 0:01:11]} Qxd8 {[%emt 0:00:02]} 27. Rd1 {[%emt 0:00:13]} Qe7 {[%emt 0:00:32]} 28. b4 {[%emt 0:02:13]} h4 {[%emt 0:02:35]} 29. Nd6 {[%emt 0:00:43]} Kg7 {[%emt 0:00:18]} 30. Bb3 {[%emt 0:00:46]} Nf4 {[%emt 0:04:19]} 31. Nxf7 {[%emt 0:00:41]} Rf8 {[%emt 0:01:29]} 32. Nd6 {[%emt 0:00:51]} N6h5 {[%emt 0:02:13]} 33. Nxc8 {[%emt 0:00:53]} Rxc8 {[%emt 0:00:01]} 34. Kxh2 {[%emt 0:00:45]} Qg5 {[%emt 0:01:18]} 35. Qf2 {[%emt 0:00:30]} Kh8 {[%emt 0:05:32]} 36. Rd7 {[%emt 0:00:23]} Rf8 {[%emt 0:01:32]} 37. Nxb7 {[%emt 0:00:38]} Nf6 {[%emt 0:02:16]} 38. Rf7 {[%emt 0:00:17]} Rxf7 {[%emt 0:02:58]} 39. Bxf7 {[%emt 0:00:02]} Nd3 {[%emt 0:00:08]} 40. Qe2 {[%emt 0:01:21]} Qg3+ {[%emt 0:00:21]} 41. Kg1 {[%emt 0:30:37]} h3 {[%emt 0:30:12]} 0-1

[Event "44th Chess Olympiad Women 2022"]
[Site "Chennai"]
[Date "2022.08.02"]
[Round "5.9"]
[White "Hoang, Thanh Trang"]
[Black "Cramling, Pia"]
[Result "1/2-1/2"]
[ECO "E04"]
[WhiteElo "2376"]
[BlackElo "2459"]
[Annotator "RC"]
[PlyCount "167"]
[EventDate "2022.07.29"]
[EventType "team-tourn"]
[EventCountry "IND"]
[SourceTitle "playchess.com"]
[Source "ChessBase"]
[SourceQuality "1"]
[WhiteTeam "Hungary"]
[BlackTeam "Sweden"]
[WhiteTeamCountry "HUN"]
[BlackTeamCountry "SWE"]
[TimeControl "40/5400+30:1800+30"]

1. d4 {[%emt 0:00:09]} Nf6 {[%emt 0:00:10]} 2. Nf3 {[%emt 0:00:36]} d5 {[%emt 0:00:26]} 3. c4 {[%emt 0:00:43]} e6 {[%emt 0:00:27]} 4. g3 {[%emt 0:00:50]} dxc4 {[%emt 0:00:54]} 5. Bg2 {[%emt 0:00:39]} c5 {[%emt 0:00:19]} 6. O-O {[%emt 0:02:22]} Nc6 {[%emt 0:00:07]} 7. Qa4 {[%emt 0:00:52]} Bd7 {[%emt 0:00:38]} 8. Qxc4 {[%emt 0:01:15]} b5 {[%emt 0:02:28]} 9. Qd3 {[%emt 0:04:49]} c4 {[%emt 0:01:27]} 10. Qd1 {[%emt 0:01:09]} Rc8 {[%emt 0:15:54]} 11. b3 {[%emt 0:04:45]} cxb3 {[%emt 0:07:40]} 12. axb3 {[%emt 0:00:57]} Bb4 {[%emt 0:13:42]} 13. Bb2 {[%emt 0:04:52]} O-O {[%emt 0:02:08]} 14. Ne5 {[%emt 0:02:37]} Qb6 {[%emt 0:06:18]} 15. Nxd7 {[%emt 0:06:54]} Nxd7 {[%emt 0:00:03]} 16. d5 {[%emt 0:00:19]} exd5 {[%emt 0:00:39]} 17. Qxd5 {[%emt 0:00:30]} Nc5 {[%emt 0:14:37]} 18. Qg5 {[%emt 0:05:46]} Ne6 {[%emt 0:02:18]} 19. Qg4 {[%emt 0:05:36]} a5 {[%emt 0:02:51]} 20. Bd5 {[%emt 0:07:59]} Ncd8 {[%emt 0:00:34]} 21. Qf5 {[%emt 0:04:36]} Rc5 {[%emt 0:06:09]} 22. Rd1 {[%emt 0:04:38]} Qd6 {[%emt 0:04:35]} 23. Na3 {[%emt 0:03:11]} Nc6 {[%emt 0:02:45]} 24. Nxb5 {[%emt 0:09:08]} Qb8 {[%emt 0:06:01]} 25. Na3 {[%emt 0:05:21]} Ne7 {[%emt 0:00:25]} 26. Qe4 {[%emt 0:02:32]} Nxd5 {[%emt 0:00:10]} 27. Rxd5 {[%emt 0:00:15]} Rxd5 {[%emt 0:00:49]} 28. Qxd5 {[%emt 0:00:08]} Rd8 {[%emt 0:00:12]} 29. Qf3 {[%emt 0:00:47]} h6 {[%emt 0:06:44]} 30. Nc4 {[%emt 0:00:46]} Qc7 {[%emt 0:00:20]} 31. Rc1 {[%emt 0:02:18]} Ng5 {[%emt 0:00:56]} 32. Qf5 {[%emt 0:02:19]} Qb7 {[%emt 0:00:28]} 33. h4 {[%emt 0:01:36]} Qe4 {[%emt 0:00:26]} 34. Qxe4 {[%emt 0:01:12]} Nxe4 {[%emt 0:00:01]} 35. Kg2 {[%emt 0:01:02]} Rd5 {[%emt 0:01:04]} 36. Ba3 {[%emt 0:05:34]} Nc3 {[%emt 0:01:23]} 37. e3 {[%emt 0:01:33]} Rd3 {[%emt 0:01:30]} 38. Bxb4 {[%emt 0:01:45]} axb4 {[%emt 0:00:03]} 39. Rc2 {[%emt 0:01:27]} Ne4 {[%emt 0:01:39]} 40. Na5 {[%emt 0:00:52]} Rc3 {[%emt 0:00:26]} 41. Rb2 {[%emt 0:06:44]} Nc5 {[%emt 0:10:57]} 42. Kf3 {[%emt 0:01:08]} h5 {[%emt 0:02:22]} 43. Ke2 {[%emt 0:01:42]} Nd3 {[%emt 0:09:25]} 44. Rd2 {[%emt 0:04:36]} Nc1+ {[%emt 0:00:13]} 45. Kd1 {[%emt 0:00:17]} Nxb3 {[%emt 0:01:27]} 46. Nxb3 {[%emt 0:00:15]} Rxb3 {[%emt 0:00:02]} 47. Kc2 {[%emt 0:00:26]} Ra3 {[%emt 0:00:46]} 48. Kb2 {[%emt 0:00:12]} g6 {[%emt 0:01:35]} 49. Rd4 {[%emt 0:00:38]} Ra4 {[%emt 0:00:29]} 50. Kb3 {[%emt 0:01:29]} Ra3+ {[%emt 0:00:22]} 51. Kb2 {[%emt 0:00:26]} Ra4 {[%emt 0:00:08]} 52. Kb3 {[%emt 0:00:08]} Ra3+ {[%emt 0:00:04]} 53. Kxb4 {[%emt 0:00:17]} Ra2 {[%emt 0:00:04]} 54. Rf4 {[%emt 0:00:19]} Rc2 {[%emt 0:00:44]} 55. Kb3 {[%emt 0:00:20]} Re2 {[%emt 0:01:26]} 56. Kc3 {[%emt 0:00:09]} Kg7 {[%emt 0:00:04]} 57. Kd3 {[%emt 0:00:30]} Ra2 {[%emt 0:00:11]} 58. Ke4 {[%emt 0:00:59]} Kf8 {[%emt 0:02:04]} 59. Kf3 {[%emt 0:00:16]} Ke7 {[%emt 0:00:04]} 60. Rb4 {[%emt 0:00:21]} Ke6 {[%emt 0:00:19]} 61. Rb6+ {[%emt 0:00:51]} Ke5 {[%emt 0:00:39]} 62. Rb7 {[%emt 0:00:20]} Ke6 {[%emt 0:00:12]} 63. e4 {[%emt 0:00:43]} Kf6 {[%emt 0:01:48]} 64. Ke3 {[%emt 0:00:26]} Rc2 {[%emt 0:00:25]} 65. f3 {[%emt 0:01:30]} Rg2 {[%emt 0:01:29]} 66. Kf4 {[%emt 0:00:17]} Rg1 {[%emt 0:02:35]} 67. Rb6+ {[%emt 0:03:25]} Ke7 {[%emt 0:00:42]} 68. g4 {[%emt 0:03:19]} hxg4 {[%emt 0:00:14]} 69. fxg4 {[%emt 0:00:07]} Rh1 {[%emt 0:00:32]} 70. Kg5 {[%emt 0:00:20]} Rg1 {[%emt 0:00:39]} 71. Rb3 {[%emt 0:03:37]} Ke6 {[%emt 0:01:19]} 72. Rf3 {[%emt 0:01:04]} Ke7 {[%emt 0:00:31]} 73. Rf4 {[%emt 0:01:53]} Rh1 {[%emt 0:00:48]} 74. Rf6 {[%emt 0:04:49]} Re1 {[%emt 0:00:30]} 75. Rf4 {[%emt 0:00:16]} Rh1 {[%emt 0:00:54]} 76. e5 {[%emt 0:01:22]} Re1 {[%emt 0:00:18]} 77. Kh6 {[%emt 0:01:16]} Kf8 {[%emt 0:01:34]} 78. h5 {[%emt 0:03:31]} gxh5 {[%emt 0:00:31]} 79. g5 {[%emt 0:01:11]} Rxe5 {[%emt 0:00:54]} 80. g6 {[%emt 0:00:12]} Kg8 {[%emt 0:00:47]} 81. Rxf7 {[%emt 0:00:38]} Re8 {[%emt 0:00:14]} 82. Rg7+ {[%emt 0:00:35]} Kh8 {[%emt 0:00:06]} 83. Rh7+ {[%emt 0:00:15]} Kg8 {[%emt 0:00:04]} 84. Rg7+ {[%emt 0:00:18]} 1/2-1/2

[Event "44th Chess Olympiad Women 2022"]
[Site "Chennai"]
[Date "2022.08.02"]
[Round "5.9"]
[White "Lazarne Vajda, Szidonia"]
[Black "Cramling Bellon, Anna"]
[Result "1-0"]
[ECO "E01"]
[WhiteElo "2313"]
[BlackElo "2065"]
[Annotator "RC"]
[PlyCount "77"]
[EventDate "2022.07.29"]
[EventType "team-tourn"]
[EventCountry "IND"]
[SourceTitle "playchess.com"]
[Source "ChessBase"]
[SourceQuality "1"]
[WhiteTeam "Hungary"]
[BlackTeam "Sweden"]
[WhiteTeamCountry "HUN"]
[BlackTeamCountry "SWE"]
[TimeControl "40/5400+30:1800+30"]

1. d4 {[%emt 0:00:07]} d5 {[%emt 0:00:25]} 2. Nf3 {[%emt 0:01:19]} Nf6 {[%emt 0:01:05]} 3. c4 {[%emt 0:00:53]} e6 {[%emt 0:01:03]} 4. g3 {[%emt 0:01:09]} Bb4+ {[%emt 0:03:28]} 5. Bd2 {[%emt 0:01:37]} Bd6 {[%emt 0:03:48]} 6. Nc3 {[%emt 0:02:36]} c6 {[%emt 0:01:08]} 7. Qc2 {[%emt 0:02:21]} Nbd7 {[%emt 0:01:52]} 8. e4 {[%emt 0:01:15]} Nxe4 {[%emt 0:08:16]} 9. Nxe4 {[%emt 0:00:15]} dxe4 {[%emt 0:00:06]} 10. Qxe4 {[%emt 0:00:11]} Nf6 {[%emt 0:04:15]} 11. Qc2 {[%emt 0:01:28]} c5 {[%emt 0:05:49]} 12. dxc5 {[%emt 0:09:21]} Bxc5 {[%emt 0:00:19]} 13. b4 {[%emt 0:00:38]} Be7 {[%emt 0:09:38]} 14. Bg2 {[%emt 0:02:16]} O-O {[%emt 0:04:53]} 15. O-O {[%emt 0:01:06]} Bd7 {[%emt 0:07:13]} 16. Ne5 {[%emt 0:07:55]} Qc7 {[%emt 0:18:25]} 17. Nxd7 {[%emt 0:09:21]} Nxd7 {[%emt 0:01:04]} 18. Rac1 {[%emt 0:04:45]} Rac8 {[%emt 0:01:54]} 19. c5 {[%emt 0:14:49]} a6 {[%emt 0:10:48]} 20. Qe4 {[%emt 0:02:25]} b5 {[%emt 0:01:06]} 21. Rfd1 {[%emt 0:07:37]} Rfd8 {[%emt 0:02:22]} 22. Qb7 {[%emt 0:01:50]} g5 {[%emt 0:11:21]} 23. Qxa6 {[%emt 0:02:20]} Rb8 {[%emt 0:00:23]} 24. a4 {[%emt 0:04:36]} bxa4 {[%emt 0:00:45]} 25. Qxa4 {[%emt 0:00:05]} Ne5 {[%emt 0:00:19]} 26. Bc3 {[%emt 0:03:13]} g4 {[%emt 0:01:09]} 27. Bxe5 {[%emt 0:03:02]} Qxe5 {[%emt 0:00:02]} 28. c6 {[%emt 0:03:47]} Rdc8 {[%emt 0:00:50]} 29. Rb1 {[%emt 0:01:31]} Rb5 {[%emt 0:00:38]} 30. Bf1 {[%emt 0:00:40]} Rd5 {[%emt 0:00:14]} 31. b5 {[%emt 0:01:54]} h5 {[%emt 0:00:34]} 32. Rxd5 {[%emt 0:01:14]} Qxd5 {[%emt 0:00:22]} 33. b6 {[%emt 0:01:20]} Bd6 {[%emt 0:00:51]} 34. c7 {[%emt 0:01:16]} Bxc7 {[%emt 0:00:28]} 35. bxc7 {[%emt 0:00:05]} Rxc7 {[%emt 0:00:04]} 36. Qe8+ {[%emt 0:03:40]} Kg7 {[%emt 0:00:13]} 37. Rb8 {[%emt 0:00:34]} f5 {[%emt 0:01:17]} 38. Qh8+ {[%emt 0:00:30]} Kf7 {[%emt 0:00:31]} 39. Qh7+ {[%emt 0:00:20]} 1-0